Cogmind - Beta 15 @@@ ROGUE MODE // 2025.07.15 @ 20:15:30 Player: Skysub Result: Destroyed by P-60 Hacker with Shock Rifle Performance ------------- Evolutions (4) 2000 Regions Visited (5) 1000 Robots Destroyed (33) 165 Value Destroyed (1031) 1031 Prototype IDs (17) 340 Alien Tech Used (0) 0 Bonus (823) 823 TOTAL SCORE: 5359 Bonus ------- Follower Combat Kills 33 Registered with UFD 300 Met Optimus in HQ 500 Friendly Fire -10 Cogmind --------- Core Integrity 0/850 Matter 30/300 Energy 100/100 System Corruption 8% Temperature Cool (0) Movement Core (50) Location -6/Factory Parts ------- > --- POWER (1) -------- (None) > --- PROPULSION (5) --- (None) > --- UTILITY (7) ------ Targeting Computer > --- WEAPON (2) ------- (None) > --- INVENTORY (5) ---- Light Nuclear Core Structural Scanner Improved Melee Analysis Suite Stasis Canceller Botcube Peak State ------------ > --- POWER ------------ Light Nuclear Core > --- PROPULSION ------- Wheel Compact Wheel Overtuned Huge Scrapsphere VTOL Module > --- UTILITY ---------- Scrap Suit Advanced Heat Sink Large Storage Unit Advanced Signal Interpreter Scrapoid Pod Rainbow Chip > --- WEAPON ----------- Overtuned Beamcaster Overtuned Coil Gun > --- INVENTORY -------- Nuclear Core Cesium-ion Thruster Small Storage Unit Structural Scanner Improved Sensor Array Targeting Computer Improved Melee Analysis Suite Stasis Canceller Improved Light Armor Plating Improved Light Armor Plating Gauss Rifle Flak Gun Mini Grenade Launcher Makeshift Spear Botcube [Rating: 80] Favorites ----------- Power Makeshift Power Source Engine Makeshift Power Source Power Core Light Nuclear Core Propulsion Light Treads Treads Light Treads Wheel Compact Wheel Flight Unit VTOL Module Utility Small Storage Unit Device Structural Scanner Storage Small Storage Unit Processor Rainbow Chip Protection Makeshift Light Armor Plating Weapon Makeshift Spear Energy Gun Overtuned Beamcaster Ballistic Gun Assault Rifle Launcher Mini Grenade Launcher Special Weapon Mining Laser Piercing Weapon Makeshift Spear Build | -11 -10 -10 -9 -9 -6 ------- Run | Yrd Mat Sub Rec Scr Fac Slots Evolved 8 | . . . . . 8 Power . | . . . . . . Propulsion 3 | . . . . . 3 Utility 5 | . . . . . 5 Weapon . | . . . . . . Parts Attached 43 | 6 . 7 5 8 17 Power 4 | 1 . 2 . 1 . Engine 3 | 1 . 2 . . . Core 1 | . . . . 1 . Reactor . | . . . . . . Propulsion 13 | 2 . 2 2 2 5 Treads 3 | 2 . . 1 . . Leg . | . . . . . . Wheel 7 | . . 2 1 2 2 Hover . | . . . . . . Flight 3 | . . . . . 3 Utility 15 | 1 . 1 2 3 8 Device 5 | . . 1 . 1 3 Storage 2 | 1 . . . 1 . Processor 4 | . . . . 1 3 Hackware . | . . . . . . Protection 4 | . . . 2 . 2 Artifact . | . . . . . . Weapon 11 | 2 . 2 1 2 4 Energy Gun 1 | . . . . 1 . Energy Cannon . | . . . . . . Ballistic Gun 7 | 2 . . . 1 4 Ballistic Cannon . | . . . . . . Launcher 1 | . . . 1 . . Special Weapon 1 | . . 1 . . . Impact Weapon . | . . . . . . Slashing Weapon . | . . . . . . Piercing Weapon 1 | . . 1 . . . Special Melee Weapon . | . . . . . . Unidentified Prototypes . | . . . . . . Corrupted Parts 1 | . . . . . 1 System Corruption 1 | . . . . . 1 Parts Lost 23 | . . 3 1 . 19 Power 2 | . . 1 . . 1 Propulsion 9 | . . 2 1 . 6 Utility 6 | . . . . . 6 Weapon 6 | . . . . . 6 Highest Loss Streak 13 | . . 3 1 . 13 To Critical Strikes 1 | . . . . . 1 Average Backups 7 | 2 4 7 8 6 12 Power . | . 1 . . . . Propulsion 1 | . 1 1 1 . 1 Utility 3 | . . 2 4 3 7 Weapon 2 | . 2 3 3 1 3 Tool/Special . | . . . . . . Unused Backups 41 | . . 3 . 33 5 Power 2 | . . . . . 2 Propulsion 7 | . . 1 . 6 . Utility 23 | . . 1 . 19 3 Weapon 9 | . . 1 . 8 . Tool/Special . | . . . . . . Average Slot Usage (%) 79 | . 85 92 94 76 56 Engine 6 | . 14 7 14 4 . Treads 9 | . 28 1 8 12 . Wheel 11 | . . 26 15 8 10 Device 2 | . . 13 1 . 10 Storage 12 | . 14 14 14 13 4 Processor 1 | . . . . 1 10 Protection 7 | . . . 12 8 2 Ballistic Gun 5 | . 28 21 3 . 4 Launcher 8 | . . . 10 12 . Piercing Weapon 10 | . . 6 14 12 . Peak Build Rating 80 | 6 6 15 20 46 80 Average Rating 20 | 5 6 9 17 17 68 On Entrance 15 | . 6 6 15 20 46 Naked Turns 21 | . . . . 21 . Heaviest Build 50 | 13 13 15 20 35 50 Greatest Support 46 | 40 40 40 26 20 46 Greatest Overweight (x) 11 | . . . 1 11 2 Average Overweight (x) . | . . . . . 1 Largest Inventory Capacity 15 | 8 8 8 8 15 15 Average Capacity 10 | 6 8 8 8 10 14 Most Carried 15 | 4 6 8 8 15 15 Average Carried 7 | 2 4 7 7 6 13 Final Capacity 15 | 8 8 8 8 15 5 Final Carried 15 | 4 6 8 8 15 5 Class Distribution -------------------- 79% | Mutant 12% | Commander-Mutant 6% | Scrapper Dominant Class ---------------- Mutant | -10/Materials Mutant | -10/Subcaves Commander-Mutant | -9/Recycling Mutant | -9/Scraptown Scrapper | -6/Factory Resources | -11 -10 -10 -9 -9 -6 ----------- Run | Yrd Mat Sub Rec Scr Fac Matter Collected 1103 | 284 37 151 91 30 510 Remotely . | . . . . . . Salvage Created 1574 | 118 113 141 477 . 725 Parts 86 | 5 8 13 15 . 45 Haulers Intercepted . | . . . . . . Recyclers Shooed 3 | . . . 1 . 2 Parts Field Recycled . | . . . . . . Retrieved Matter . | . . . . . . Parts Self-Destructed 10 | . . 10 . . . Prevented . | . . . . . . Kills | -11 -10 -10 -9 -9 -6 ------- Run | Yrd Mat Sub Rec Scr Fac Combat Hostiles Destroyed 20 | . 2 3 3 . 12 Melee 5 | . . 1 3 . 1 Guns 13 | . 2 2 . . 9 AOE 2 | . . . . . 2 Classes Destroyed 11 | 3 2 1 1 . 4 Worker 3 | 1 1 . . . 1 Builder 2 | . 1 . . . 1 Tunneler 1 | 1 . . . . . Recycler 6 | 1 . . 4 . 1 Watcher 1 | . . . . . 1 Swarmer 5 | . . . . . 5 Grunt 6 | . 2 . 1 . 3 Sentry 1 | . . . . . 1 Hunter 2 | . . . . . 2 Programmer 3 | . . . 2 . 1 Subdweller 3 | . . 3 . . . Best Kill Streak 5 | 2 3 1 3 . 5 Combat Bots Only 5 | . 2 1 3 . 5 Max Kills in Single Turn 1 | 1 1 1 1 . 1 Gunslinging . | . . . . . . Exploded 1 | . . . . . 1 Melee 1 | . . 1 1 . 1 Uniques/NPCs Destroyed . | . . . . . . Combat | -11 -10 -10 -9 -9 -6 -------- Run | Yrd Mat Sub Rec Scr Fac Hostile Shots Fired 343 | . 18 34 13 . 278 Missed 83 | . 3 11 5 . 64 Hits 260 | . 15 23 8 . 214 Projectile 260 | . 15 23 8 . 214 AOE 2 | . . . . . 2 Critical Strikes 14 | . . 2 1 . 11 Damage Taken 4071 | . 187 553 114 . 3217 Core 1090 | . 61 142 27 . 860 Absorbed by Shields . | . . . . . . Core Remaining (%) 54 | 100 . . . 8 . Volleys Fired 95 | 6 14 20 . . 55 Largest 2 | 2 2 2 . . 2 Hottest 132 | 40 40 100 . . 132 Shots Fired 159 | 12 28 37 1 . 81 Gun 156 | 12 28 34 1 . 81 Cannon . | . . . . . . Launcher . | . . . . . . Special 3 | . . 3 . . . Kinetic 134 | 12 28 34 1 . 59 Thermal 25 | . . 3 . . 22 Explosive . | . . . . . . Electromagnetic . | . . . . . . Robot Hit Streak 13 | 5 4 12 13 . 8 Robot Miss Streak 9 | 1 2 2 . . 9 Penetration Max . | . . . . . . Secondary Targets 1 | . . . . . 1 Max Gunslinging Chain 1 | . . . . . 1 Shots Hit Robots 116 | 8 18 31 13 . 46 Core Hits 57 | 3 7 7 5 . 35 Critical Kills 1 | . . . . . 1 Critical Parts Destroyed . | . . . . . . Critical Strikes 1 | . . . . . 1 Destroy 1 | . . . . . 1 Melee Attacks 60 | . . 26 20 . 14 Impact . | . . . . . . Slashing . | . . . . . . Piercing 60 | . . 26 20 . 14 Sneak Attacks 7 | . . . 7 . . Combat Hostiles 1 | . . . 1 . . Follow-up Attacks . | . . . . . . Damage Inflicted 2649 | 91 205 382 567 . 1404 Guns 1651 | 90 205 308 15 . 1033 Cannons . | . . . . . . Explosions 232 | . . . . . 232 Melee 696 | . . 74 544 . 78 Ramming 70 | 1 . . 8 . 61 Kinetic 1325 | 90 205 308 15 . 707 Thermal 475 | . . . . . 475 Explosive 83 | . . . . . 83 Electromagnetic . | . . . . . . Impact . | . . . . . . Slashing . | . . . . . . Piercing 696 | . . 74 544 . 78 Highest Corruption 8 | . 1 1 2 . 8 Average Corruption 1 | . 1 1 1 . 4 Corruption Purged . | . . . . . . Corruption Blocked . | . . . . . . Effects 22 | . 1 2 18 . 1 Message Errors 8 | . . 1 7 . . Matter Fused 6 | . . 1 4 . 1 Heat Flow Errors 2 | . . . 2 . . Energy Discharges 3 | . . . 3 . . Data Loss (minor) 2 | . 1 . 1 . . Misfires 1 | . . . 1 . . Overload Shots . | . . . . . . Overflow Damage 159 | . . . 159 . . Projectiles . | . . . . . . Explosions . | . . . . . . Melee 159 | . . . 159 . . Knockbacks . | . . . . . . Impact . | . . . . . . Kinetic . | . . . . . . Secondary . | . . . . . . Self-Inflicted Damage 33 | . . . 4 . 29 Shots . | . . . . . . Rammed 6 | . . . 2 . 4 Targets Rammed 7 | 1 . . 2 . 4 Kicked . | . . . . . . Crushed 1 | 1 . . . . . Highest Temperature 312 | . 12 . 149 . 312 Average Temperature 89 | . 7 . 73 . 102 Received Heat Transfer 387 | . 108 90 18 . 171 Siege Activations . | . . . . . . Martial Activations . | . . . . . . Shielding Activations . | . . . . . . Robots Disrupted . | . . . . . . Combat Hostiles . | . . . . . . Robots Corrupted . | . . . . . . Combat Hostiles . | . . . . . . Parts Fried . | . . . . . . Impact Corruptions . | . . . . . . Robots Melted . | . . . . . . Combat Hostiles . | . . . . . . Parts Melted 1 | . . . . . 1 Heat Transferred 700 | . . . . . 700 Parts Sabotaged . | . . . . . . Parts Stolen . | . . . . . . Parts Stripped . | . . . . . . Power Chain Reactions . | . . . . . . Alert | -11 -10 -10 -9 -9 -6 ------- Run | Yrd Mat Sub Rec Scr Fac Maximum Alert Level . | . . . . . . Low Security (%) 100 | 100 100 . 100 . 100 Level 1 . | . . . . . . Level 2 . | . . . . . . Level 3 . | . . . . . . Level 4 . | . . . . . . Level 5 . | . . . . . . High Security . | . . . . . . Max Security . | . . . . . . Peak Influence 196 | 5 45 . 110 . 196 Initial 3 | . 3 . . . . Average 43 | . 7 . 28 . 89 Influence Increases 994 | 15 64 30 363 . 522 Destroy 0b10 Robot/C 380 | . 40 . 100 . 240 Destroy 0b10 Robot/NC 65 | 15 10 . 20 . 20 Destroy Leader 72 | . 10 . . . 62 Allied During Kill 22 | . . . 22 . . Successful Hack 35 | . 4 . 25 . 6 Select Force Hacks 180 | . . . 180 . . Disable Machine 90 | . . . . . 90 Destroy Structure 90 | . . . 16 . 74 Lose Combat Pursuer 60 | . . 30 . . 30 Influence Decreases 933 | 10 69 30 363 . 461 Entered New Map 2 | . 2 . . . . Time Decay 691 | 10 67 30 313 . 271 Lost Part 200 | . . . 10 . 190 Lost Ally 40 | . . . 40 . . Squads Dispatched 5 | . 1 . . . 4 Investigation 2 | . 1 . . . 1 Extermination 1 | . . . . . 1 Reinforcement 2 | . . . . . 2 Assault . | . . . . . . Garrison . | . . . . . . Intercept . | . . . . . . Searches Triggered . | . . . . . . Construction Impeded 2 | . . . . . 2 Haulers Reinforced . | . . . . . . Active Scanning Responses . | . . . . . . Cargo Convoy Interrupts . | . . . . . . Stealth | -11 -10 -10 -9 -9 -6 --------- Run | Yrd Mat Sub Rec Scr Fac Distress Signals 2 | . 1 . . . 1 Communications Jammed . | . . . . . . Distress Signals . | . . . . . . Times Spotted 37 | . 4 6 3 . 24 Peak Tracking Total 7 | . 3 2 2 . 7 Tactical Retreats 2 | . . 1 . . 1 Traps | -11 -10 -10 -9 -9 -6 ------- Run | Yrd Mat Sub Rec Scr Fac Traps Triggered 2 | . . 1 . . 1 Indirectly . | . . . . . . Trap Hack Attempts . | . . . . . . Triggered . | . . . . . . Disarmed . | . . . . . . Reprogrammed . | . . . . . . Reused . | . . . . . . Traps Extracted . | . . . . . . Installed . | . . . . . . Triggered . | . . . . . . Machines | -11 -10 -10 -9 -9 -6 ---------- Run | Yrd Mat Sub Rec Scr Fac Machines Disabled 7 | . . 1 . . 6 Max in Single Turn 3 | . . 1 . . 3 Machines Repaired . | . . . . . . Machines Dismantled . | . . . . . . Machines Sabotaged . | . . . . . . Overloaded Fab Kills . | . . . . . . Hacking | -11 -10 -10 -9 -9 -6 --------- Run | Yrd Mat Sub Rec Scr Fac Machines Accessed 24 | . 2 1 13 4 4 Terminals 10 | . 2 . 6 . 2 Fabricators . | . . . . . . Repair Stations . | . . . . . . Recycling Units 8 | . . . 7 . 1 Scanalyzers 1 | . . . . . 1 Garrison Access . | . . . . . . Total Hacks 61 | . 4 1 37 9 10 Successful 42 | . 1 1 27 9 4 Failed 19 | . 3 . 10 . 6 Catastrophic 2 | . . . . . 2 Database Lockouts . | . . . . . . Manual 39 | . 4 . 26 . 9 Terminals 26 | . 4 . 16 . 6 Fabricators . | . . . . . . Repair Stations . | . . . . . . Recycling Units 24 | . . . 21 . 3 Scanalyzers 1 | . . . . . 1 Garrison Access . | . . . . . . Terminal Hacks 14 | . . 1 3 9 1 Record 4 | . . . . 4 . Robot Analysis 4 | . . . . 4 . Terminal Index 1 | . . . . . 1 Zone Layout 3 | . . . 3 . . Proto ID Catalog 2 | . . 1 . 1 . Fabricator Hacks . | . . . . . . Repair Station Hacks . | . . . . . . Recycling Unit Hacks 9 | . . . 8 . 1 Report Inventory 8 | . . . 7 . 1 Retrieve Components 1 | . . . 1 . . Scanalyzer . | . . . . . . Garrison Access Hacks . | . . . . . . Unauthorized Hacks 19 | . 1 . 16 . 2 Terminals 12 | . 1 . 10 . 1 Botnet 5 | . . . 4 . 1 Skim 7 | . 1 . 6 . . Fabricators . | . . . . . . Repair Stations . | . . . . . . Recycling Units 7 | . . . 6 . 1 Tunnel 6 | . . . 6 . . Fedlink 1 | . . . . . 1 Scanalyzers . | . . . . . . Garrison Access . | . . . . . . Data Cores Recovered . | . . . . . . Used . | . . . . . . Hacking Detections 14 | . 2 . 8 . 4 Full Trace Events 2 | . 1 . 1 . . Feedback Events 1 | . 1 . . . . Corruption 1 | . 1 . . . . Feedback Blocked . | . . . . . . Robot Schematics Acquired . | . . . . . . Robots Built . | . . . . . . Authchips . | . . . . . . Time . | . . . . . . Total Robot Build Rating . | . . . . . . Part Schematics Acquired . | . . . . . . Parts Built . | . . . . . . Authchips . | . . . . . . Time . | . . . . . . Total Part Build Rating . | . . . . . . Parts Repaired . | . . . . . . Time . | . . . . . . Parts Recycled . | . . . . . . Recycled Matter . | . . . . . . Retrieved Matter . | . . . . . . Retrieved Components 6 | . . . 6 . . Parts Scanalyzed . | . . . . . . Part Schematics Acquired . | . . . . . . Parts Damaged . | . . . . . . Bothacking | -11 -10 -10 -9 -9 -6 ------------ Run | Yrd Mat Sub Rec Scr Fac Used RIF Installer . | . . . . . . Robots Hacked . | . . . . . . Non-combat . | . . . . . . Combat . | . . . . . . Robot Hacks Applied . | . . . . . . Relay Couplers Released . | . . . . . . Fabnet Peak Effective % . | . . . . . . Robots Rewired 13 | . . . 13 . . Allies Hacked . | . . . . . . Hacks Repelled . | . . . . . . Allies | -11 -10 -10 -9 -9 -6 -------- Run | Yrd Mat Sub Rec Scr Fac Total Allies 13 | . . . 13 . . Largest Group 13 | . . . 13 . . Highest-Rated Group 227 | . . . 227 . . Highest-Rated Ally 34 | . . . 34 . . Total Orders 1 | . . . 1 . . STAY 1 | . . . 1 . . Ally Attacks 18 | . . . 18 . . Total Damage 299 | . . . 299 . . Kills 2 | . . . 2 . . Allies Corrupted . | . . . . . . Allies Melted . | . . . . . . Intel | -11 -10 -10 -9 -9 -6 ------- Run | Yrd Mat Sub Rec Scr Fac Active Infowar (turns) 1190 | . . 909 110 . 171 Structural 1190 | . . 909 110 . 171 Robot Analysis Total 4 | . . . . 4 . Derelict Logs Recovered 4 | . . . . 4 . Drone Launches . | . . . . . . Drone Recoveries . | . . . . . . Exploration | -11 -10 -10 -9 -9 -6 ------------- Run | Yrd Mat Sub Rec Scr Fac Turns Passed 7432 | 108 317 911 1112 4286 698 Spaces Moved 5207 | 53 107 856 926 2762 503 Core 187 | 6 . . . 118 63 Treads 1811 | 47 107 1 64 1592 . Legs . | . . . . . . Wheels 3208 | . . 855 862 1052 439 Hover . | . . . . . . Flight 1 | . . . . . 1 Fastest Speed 32 | 50 160 90 90 50 32 Average Speed 122 | 147 160 90 101 144 83 Slowest Speed 600 | 160 160 160 160 600 96 Overloaded Moves . | . . . . . . Propulsion Burnouts . | . . . . . . Robots Hopped . | . . . . . . Potential Cave-ins 2 | . . 2 . . . Cave-ins Triggered . | . . . . . . Exploration Rate (%) 43 | 4 15 46 99 85 12 Regions Visited 5 Branch Regions 3 Pre-discovered Areas 10 | . . 1 8 1 . Known Exits Taken . | . . . . . . Unknown Exits Taken 5 | 1 1 1 1 1 . Scrap Searched 7 | . . 4 . 3 . Spaces Dug 13 | . . 8 5 . . Terrain Destroyed 108 | . . 8 5 . 95 Melee 13 | . . 8 5 . . Projectile 31 | . . . . . 31 AOE 64 | . . . . . 64 Terrain Rammed . | . . . . . . Walls Destroyed . | . . . . . . Machines Disabled . | . . . . . . Actions | -11 -10 -10 -9 -9 -6 --------- Run | Yrd Mat Sub Rec Scr Fac Total 6122 | 69 228 931 1079 3100 715 Wait 436 | . 106 6 45 184 95 Move 5203 | 53 106 855 925 2761 503 Hop . | . . . . . . Pick Up 96 | 4 2 11 1 67 11 Fast Attach 21 | 6 . 1 4 7 3 Attach 19 | . . 4 1 . 14 Detach 9 | . . . . 8 1 Swap 13 | . . 2 1 2 8 Drop 88 | . . 6 4 71 7 Fire 95 | 6 14 20 . . 55 Melee 60 | . . 26 20 . 14 Ram 6 | . . . 2 . 4 Kick . | . . . . . . Crush . | . . . . . . Escape Stasis . | . . . . . . Rewire 76 | . . . 76 . . Trap . | . . . . . . Miscellaneous . | . . . . . . Route ------- -11/Scrapyard -10/Materials -10/Subcaves (discovered 2 exits: [*Mat] / *Rec) -9/Recycling (discovered 2 exits: [*Fac] / *Scr) -9/Scraptown -6/Factory (discovered 1 exit: *Fac) History --------- Turn | Location | Event 15 | -11/Scrapyard | Discovered new exit (range 16) 109 | -11/Scrapyard | Entered Materials 300 | -10/Materials | Build established: Mutant 387 | -10/Materials | Discovered new exit (range 8) 426 | -10/Materials | Entered Subcaves 427 | -10/Subcaves | Approached by a straggling Scientist 457 | -10/Subcaves | Core integrity fell below 50% 499 | -10/Subcaves | Lost 3 parts (1p2n) 829 | -10/Subcaves | Discovered new exit (range 11) 906 | -10/Subcaves | Shifting Twisted Machinery released Mak. Spear 946 | -10/Subcaves | Shifting Twisted Machinery released Sub. Power Source 963 | -10/Subcaves | Shifting Twisted Machinery released Riot Gun 975 | -10/Subcaves | Shifting Twisted Machinery released Sub. Beam Cannon 979 | -10/Subcaves | Core integrity fell below 20% 986 | -10/Subcaves | Learned location of Zion (-6) 986 | -10/Subcaves | Met a Zionite searching for "candidates" 999 | -10/Subcaves | Disturbed a concealed Subdweller 1187 | -10/Subcaves | Shifting Twisted Machinery released Sub. Machine Gun 1213 | -10/Subcaves | Visited 4L-MR0's lab 1223 | -10/Subcaves | Found Rainbow Chip 1250 | -10/Subcaves | Shifting Twisted Machinery released Sub. Optics 1331 | -10/Subcaves | Discovered new exit (range 4) 1337 | -10/Subcaves | Entered Recycling 1684 | -9/Recycling | Scanned before Scraplab entrance 1823 | -9/Recycling | Build established: Commander-Mutant 1866 | -9/Recycling | Discovered new exit (range 15) 2132 | -9/Recycling | Learned 2 Storage zone layouts 2202 | -9/Recycling | Learned location of 2 exits from Materials 2319 | -9/Recycling | Entered Scraplab 2332 | -9/Recycling | Discovered new exit (range 3) 2344 | -9/Recycling | Learned Materials garrison access intel 2372 | -9/Recycling | Learned Storage security intel 2391 | -9/Recycling | Learned Materials emergency access door positions 2420 | -9/Recycling | Learned Storage emergency access door positions 2449 | -9/Recycling | Entered Scraptown 2449 | -9/Scraptown | System corruption cleaned by C-Scrubber 2573 | -9/Scraptown | Scanned Subdweller tech in exchange for log data 2577 | -9/Scraptown | Learned Research emergency access door positions 2581 | -9/Scraptown | Learned location of Testing (-3) 2717 | -9/Scraptown | Heard Great Nut preacher, LISTEN AND RECITE! 2739 | -9/Scraptown | Build established: Mutant 3129 | -9/Scraptown | Visited Fellowship of the Rings 3144 | -9/Scraptown | Visited Symbiants 3157 | -9/Scraptown | Visited Spacefarers 3173 | -9/Scraptown | Visited Comm Corps 3251 | -9/Scraptown | Visited Shadow of the Wyrm 3322 | -9/Scraptown | Visited Junk Repository 3378 | -9/Scraptown | Visited Cyclists 3555 | -9/Scraptown | Visited UFD Registry 3555 | -9/Scraptown | Registered with UFD as "Micromaster" 3844 | -9/Scraptown | Visited Junk Cannon Lab 3852 | -9/Scraptown | Found Prototype Special Weapon 3892 | -9/Scraptown | Visited Botcube Research 3899 | -9/Scraptown | Found Botcube 3940 | -9/Scraptown | Visited Junk Repository 4124 | -9/Scraptown | Visited Modified Component R&D 4243 | -9/Scraptown | Found Scrap Suit 4421 | -9/Scraptown | Visited A0-MCA Data Center 4430 | -9/Scraptown | Given a B rating by A0-MCA 4433 | -9/Scraptown | Found A0-MCA's Component Scanner 4537 | -9/Scraptown | Visited Scrapoid Pod Storage 4547 | -9/Scraptown | Found Scrapoid Pod 4575 | -9/Scraptown | Visited Chapter 10 4606 | -9/Scraptown | Visited Science Guys 4660 | -9/Scraptown | Visited Analyses Database 4697 | -9/Scraptown | Visited Scrap Suit Storage 5187 | -9/Scraptown | Entered Cyclist Reading Room 6213 | -9/Scraptown | Attached Rainbow Chip, gained temporary slots: Power, Propulsion, Utility, Weapon 6519 | -9/Scraptown | Met Optimus 6519 | -9/Scraptown | Accepted into 0bPrime 6732 | -9/Scraptown | Discovered new exit (range 5) 6735 | -9/Scraptown | Entered Factory 6735 | -6/Factory | Evolved 8 slots: Propulsion x3, Utility x5 6984 | -6/Factory | Loaded intel: 8 recycling unit locations 7035 | -6/Factory | Build established: Scrapper 7098 | -6/Factory | Discovered new exit (range 12) 7107 | -6/Factory | Identified exit to Factory 7297 | -6/Factory | Lost 6 parts (2n4w) 7390 | -6/Factory | Core integrity fell below 50% 7413 | -6/Factory | Core integrity fell below 20% 7433 | -6/Factory | Destroyed by P-60 Hacker with Shock Rifle Last Messages --------------- 07412_ Acquired Corrupted VTOL Module. 07412_ Integrated Corrupted VTOL Module (+1). 07414_ Acquired Lgt. Nuclear Core. 07414_ Penetrated by Slug. 07415_ Mak. Spear destroyed. 07415_ Penetrated by Slug. 07415_ VTOL Module destroyed. 07415_ Penetrated by Slug. 07415_ Cesium-ion Thruster destroyed. 07417_ Slug penetrates Megafabricator. 07417_ Slug penetrates S-27 Virus. 07418_ Penetrated by Slug. 07418_ Rainbow Chip destroyed. 07418_ Temporary Power slot lost. 07418_ Temporary Propulsion slot lost. 07418_ Temporary Utility slot lost. 07418_ Temporary Weapon slot lost. 07418_ Penetrated by Slug. 07421_ Slug penetrates Wall. 07421_ Targeting Computer destroyed. Map ----- +----------------------------------------------------+ | # #????????????????????????????????????????? | | # #????????????????????????????????????????? | | # #????????????????????????????????????????? | | # #????????????????????????????????????????? | | # #????????????????????????????????????????? | | # #????????????????????????????????????????? | | # #????????????????????????????????????????? | | # #????????????????????????????????????????? | | # ##########???????????????????????????????? | | #=! #?????????????????????????????""? | | # = #?????????????????????????????"Y? | | " * ^"""""" #?????????????????????????????""? | | # """""" #???????????????????????????????? | | # """""" ##############??????????????????? | | # """""" # #??????????????????? | | # """""" # #??????????????????? | | ## ^ """"" ! # #??????????????????? | | ## """"" # #??????????????????? | | ## """"" # """" """" #??????????????????? | | ?# """"" # """" """" #??????????????????? | | ?# = " """" """" #??????????????????? | | ?# """""" # """" """" #??????????????????? | | ?# """""" # """" """" #??????????????????? | | ?# """""" # """" """" #??????????????????? | | ?# """""" # """" """" #??????????????????? | | ?# """""" # p s@ #??????????????????? | | ## """""" ######+#######??????????????????? | | "?"""" #???? ????????????????????????? | | "?"""" #???? ????????????????????????? | | "??""" +???"""""???????????????????????? | | ?? #??? ???????????????????????? | | ???? #??"""""""??????????????????????? | | ??? #?? ??????????????????????? | | ???? #? """"""""?????????????????????? | | #####???### #? ??????????????????????? | | ??????????# #???????????????????????????????? | | ??????????? ????????????????????????????????? | | ?????????????????????????????????????????????????? | | ?????????????????????????????????????????????????? | | ?????????????????????????????????????????????????? | | ?????????????????????????????????????????????????? | | ?????????????????????????????????????????????????? | | ?????????????????????????????????????????????????? | | ?????????????????????????????????????????????????? | | ?????????????????????????????????????????????????? | | ?????????????????????????????????????????????????? | | ?????????????????????????????????????????????????? | | ?????????????????????????????????????????????????? | | ?????????????????????????????????????????????????? | | ?????????????????????????????????????????????????? | +----------------------------------------------------+ Best States ------------- Heat Dissipation 56 Energy Generation 15 Energy Capacity 250 Matter Stores 300 Matter Capacity 300 Sight Range 16 Terrain Scan Density 10 Armor Coverage 300 Evasion (%) 50 Targeting Accuracy 10 Recoil Reduction 2 Item Schematics ----------------- None Robot Schematics ------------------ None Fabricated ------------ Nothing Repaired ---------- Nothing Alien Tech Used ----------------- None Achievements -------------- None Challenges ------------ None Game ------ Seed ExoskeletonBackupWeb Manual? 0 Play Time 00:50:17 Cumulative 153.1 hours Start 2025.07.15 @ 18:17:13 End 2025.07.15 @ 20:15:30 Sessions 1 Manual Loads 0 Difficulty Rogue Special Mode None Game No. 178 Rogue 178 Adventurer 0 Explorer 0 Win Type - Total 3 Types 1/0/0/1/0/0/0/0/0/1 Lore% 65 Gallery% 61 Achievement% 53 Wizard Run 0 Options --------- Layout 1 ASCII 0 Keyboard 1 Movement Numpad Keybinds 0 Fullscreen 1 Font 32/SmallcapsGlow Map View 77x35 Zoom Use 0% Tactical HUD 1 Map Filters NONE Filters NONE Steam 1 RUN: cd7bdac4-e421-43ba-8202-efbbeb83aed0